[Event "Titled Tuesday Blitz July 4 Late 2023"]
[White "Przybylski, Wojciech"]
[Black "Stribuk, Artiom"]
[WhiteFideId "1117599"]
[BlackFideId "13515659"]
[WhiteElo "2578"]
[BlackElo "2804"]
[Result "1/2-1/2"]
[Round "8"]
[TimeControl "180+2"]
[Date "2023.07.04"]
[WhiteClock "0:00:18"]
[BlackClock "0:00:05"]
[Board "27"]

1. e4 {[%clk 0:02:58]}  c5 {[%clk 0:02:55]} 2. Nf3 {[%clk 0:02:58]}  d6 {[%clk 0:02:55]} 3. Bc4 {[%clk 0:02:56]}  Nf6 {[%clk 0:02:54]} 4. d3 {[%clk 0:02:56]}  e6 {[%clk 0:02:53]} 5. O-O {[%clk 0:02:56]}  Be7 {[%clk 0:02:53]} 6. Re1 {[%clk 0:02:56]}  Nbd7 {[%clk 0:02:37]} 7. c3 {[%clk 0:02:56]}  O-O {[%clk 0:02:33]} 8. a4 {[%clk 0:02:56]}  b6 {[%clk 0:02:14]} 9. Nbd2 {[%clk 0:02:53]}  Bb7 {[%clk 0:02:10]} 10. Bb3 {[%clk 0:02:53]}  a6 {[%clk 0:01:52]} 11. d4 {[%clk 0:02:48]}  cxd4 {[%clk 0:01:36]} 12. cxd4 {[%clk 0:02:47]}  b5 {[%clk 0:01:33]} 13. a5 {[%clk 0:02:46]}  Rc8 {[%clk 0:01:31]} 14. Bc2 {[%clk 0:02:40]}  Qc7 {[%clk 0:01:31]} 15. Bd3 {[%clk 0:02:36]}  e5 {[%clk 0:01:13]} 16. d5 {[%clk 0:02:32]}  g6 {[%clk 0:01:01]} 17. h3 {[%clk 0:02:29]}  Nh5 {[%clk 0:01:01]} 18. Nf1 {[%clk 0:02:21]}  Ng7 {[%clk 0:00:46]} 19. b4 {[%clk 0:02:17]}  f5 {[%clk 0:00:45]} 20. Bh6 {[%clk 0:02:13]}  fxe4 {[%clk 0:00:38]} 21. Bxe4 {[%clk 0:02:10]}  Nf6 {[%clk 0:00:38]} 22. Rc1 {[%clk 0:02:07]}  Qd7 {[%clk 0:00:34]} 23. Ng3 {[%clk 0:02:03]}  Rxc1 {[%clk 0:00:34]} 24. Bxc1 {[%clk 0:01:59]}  Nxe4 {[%clk 0:00:31]} 25. Nxe4 {[%clk 0:01:57]}  Nf5 {[%clk 0:00:32]} 26. Bg5 {[%clk 0:01:29]}  Kg7 {[%clk 0:00:24]} 27. g4 {[%clk 0:01:22]}  Nh6 {[%clk 0:00:15]} 28. Bxh6+ {[%clk 0:00:59]}  Kxh6 {[%clk 0:00:14]} 29. Qd2+ {[%clk 0:01:00]}  Kg7 {[%clk 0:00:15]} 30. Nfg5 {[%clk 0:01:00]}  Kg8 {[%clk 0:00:08]} 31. Ne6 {[%clk 0:01:00]}  Rf7 {[%clk 0:00:09]} 32. f4 {[%clk 0:00:57]}  exf4 {[%clk 0:00:07]} 33. N4g5 {[%clk 0:00:57]}  Bxg5 {[%clk 0:00:07]} 34. Nxg5 {[%clk 0:00:57]}  Re7 {[%clk 0:00:07]} 35. Re6 {[%clk 0:00:53]}  Rxe6 {[%clk 0:00:06]} 36. Nxe6 {[%clk 0:00:53]}  f3 {[%clk 0:00:03]} 37. Qf4 {[%clk 0:00:44]}  Qf7 {[%clk 0:00:03]} 38. Qxd6 {[%clk 0:00:42]}  h6 {[%clk 0:00:02]} 39. Qb8+ {[%clk 0:00:29]}  Kh7 {[%clk 0:00:02]} 40. Nd8 {[%clk 0:00:28]}  f2+ {[%clk 0:00:02]} 41. Kf1 {[%clk 0:00:28]}  Qf3 {[%clk 0:00:03]} 42. Qxb7+ {[%clk 0:00:27]}  Kg8 {[%clk 0:00:03]} 43. Qd7 {[%clk 0:00:20]}  Qd1+ {[%clk 0:00:03]} 44. Kxf2 {[%clk 0:00:20]}  Qd2+ {[%clk 0:00:04]} 45. Kf3 {[%clk 0:00:20]}  Qd3+ {[%clk 0:00:04]} 46. Kf4 {[%clk 0:00:20]}  Qd4+ {[%clk 0:00:04]} 47. Kg3 {[%clk 0:00:20]}  Qe3+ {[%clk 0:00:04]} 48. Kg2 {[%clk 0:00:20]}  Qe2+ {[%clk 0:00:04]} 49. Kg3 {[%clk 0:00:21]}  Qe3+ {[%clk 0:00:05]} 50. Kg2 {[%clk 0:00:17]}  Qe2+ {[%clk 0:00:05]} 51. Kg1 {[%clk 0:00:18]}  Qe1+ {[%clk 0:00:05]} 52. Kg2 {[%clk 0:00:18]}  Qe2+ {[%clk 0:00:05]} 1/2-1/2


[Site "https://www.chess.com"]

[Event "Titled Tuesday Blitz July 4 Late 2023"]
[White "Hambleton, Aman"]
[Black "musclemonster12"]
[WhiteFideId "2606577"]
[WhiteElo "2799"]
[BlackElo "2548"]
[Result "0-1"]
[Round "8"]
[TimeControl "180+2"]
[Date "2023.07.04"]
[WhiteClock "0:00:01"]
[BlackClock "0:00:14"]
[Board "28"]

1. d4 {[%clk 0:03:00]}  Nf6 {[%clk 0:02:59]} 2. Bf4 {[%clk 0:03:00]}  d5 {[%clk 0:02:42]} 3. e3 {[%clk 0:03:00]}  e6 {[%clk 0:02:41]} 4. Nd2 {[%clk 0:02:59]}  c5 {[%clk 0:02:41]} 5. c3 {[%clk 0:02:59]}  Bd6 {[%clk 0:02:41]} 6. Ngf3 {[%clk 0:03:00]}  Nc6 {[%clk 0:02:38]} 7. Bg3 {[%clk 0:02:59]}  O-O {[%clk 0:02:34]} 8. Bd3 {[%clk 0:02:55]}  Be7 {[%clk 0:02:30]} 9. Ne5 {[%clk 0:02:24]}  Qb6 {[%clk 0:02:28]} 10. Rb1 {[%clk 0:02:12]}  a5 {[%clk 0:02:10]} 11. O-O {[%clk 0:02:06]}  Nxe5 {[%clk 0:01:29]} 12. Bxe5 {[%clk 0:02:05]}  Nd7 {[%clk 0:01:28]} 13. Bg3 {[%clk 0:02:04]}  f5 {[%clk 0:01:15]} 14. c4 {[%clk 0:01:38]}  cxd4 {[%clk 0:01:06]} 15. cxd5 {[%clk 0:01:38]}  exd5 {[%clk 0:01:00]} 16. exd4 {[%clk 0:00:18]}  f4 {[%clk 0:00:50]} 17. Bh4 {[%clk 0:00:18]}  Bxh4 {[%clk 0:00:46]} 18. Qh5 {[%clk 0:00:18]}  Nf6 {[%clk 0:00:46]} 19. Qxh4 {[%clk 0:00:10]}  Qxd4 {[%clk 0:00:46]} 20. Nf3 {[%clk 0:00:02]}  Qxd3 {[%clk 0:00:46]} 21. Qxf4 {[%clk 0:00:02]}  Qe4 {[%clk 0:00:45]} 22. Qc7 {[%clk 0:00:02]}  Bg4 {[%clk 0:00:41]} 23. Rfe1 {[%clk 0:00:02]}  Qc4 {[%clk 0:00:40]} 24. Qxc4 {[%clk 0:00:02]}  dxc4 {[%clk 0:00:41]} 25. Ne5 {[%clk 0:00:03]}  Be6 {[%clk 0:00:40]} 26. a4 {[%clk 0:00:02]}  Rfe8 {[%clk 0:00:39]} 27. Rbc1 {[%clk 0:00:02]}  Rac8 {[%clk 0:00:38]} 28. Nf3 {[%clk 0:00:02]}  Bd5 {[%clk 0:00:38]} 29. Rxe8+ {[%clk 0:00:02]}  Rxe8 {[%clk 0:00:39]} 30. Nd4 {[%clk 0:00:02]}  Ne4 {[%clk 0:00:37]} 31. f3 {[%clk 0:00:02]}  Nc5 {[%clk 0:00:37]} 32. Nf5 {[%clk 0:00:01]}  Nd3 {[%clk 0:00:36]} 33. Rd1 {[%clk 0:00:02]}  g6 {[%clk 0:00:34]} 34. Nh6+ {[%clk 0:00:01]}  Kg7 {[%clk 0:00:33]} 35. Ng4 {[%clk 0:00:02]}  Re2 {[%clk 0:00:32]} 36. b3 {[%clk 0:00:02]}  c3 {[%clk 0:00:15]} 37. Rxd3 {[%clk 0:00:01]}  c2 {[%clk 0:00:15]} 38. Rc3 {[%clk 0:00:01]}  Re1+ {[%clk 0:00:15]} 39. Kf2 {[%clk 0:00:01]}  c1=Q {[%clk 0:00:16]} 40. Rxc1 {[%clk 0:00:02]}  Rxc1 {[%clk 0:00:16]} 41. Ne5 {[%clk 0:00:02]}  Bxb3 {[%clk 0:00:16]} 42. Nd3 {[%clk 0:00:02]}  Rc2+ {[%clk 0:00:16]} 43. Kg3 {[%clk 0:00:01]}  Bxa4 {[%clk 0:00:17]} 44. Ne5 {[%clk 0:00:02]}  Bc6 {[%clk 0:00:17]} 45. h4 {[%clk 0:00:01]}  a4 {[%clk 0:00:18]} 46. h5 {[%clk 0:00:02]}  gxh5 {[%clk 0:00:17]} 47. Kh4 {[%clk 0:00:01]}  Rxg2 {[%clk 0:00:18]} 48. f4 {[%clk 0:00:02]}  Re2 {[%clk 0:00:17]} 49. Nd3 {[%clk 0:00:01]}  Re3 {[%clk 0:00:16]} 50. Nc5 {[%clk 0:00:01]}  a3 {[%clk 0:00:16]} 51. f5 {[%clk 0:00:01]}  a2 {[%clk 0:00:15]} 52. f6+ {[%clk 0:00:02]}  Kxf6 {[%clk 0:00:15]} 53. Nb3 {[%clk 0:00:01]}  Rxb3 {[%clk 0:00:14]} 54. Kxh5 {[%clk 0:00:01]}  a1=Q {[%clk 0:00:14]} 55. Kh6 {[%clk 0:00:01]}  Qh1# {[%clk 0:00:14]} 0-1


[Site "https://www.chess.com"]

[Event "Titled Tuesday Blitz July 4 Late 2023"]
[White "Mattheii"]
[Black "Leitao, Rafael"]
[BlackFideId "2101246"]
[WhiteElo "2535"]
[BlackElo "2785"]
[Result "1-0"]
[Round "8"]
[TimeControl "180+2"]
[Date "2023.07.04"]
[WhiteClock "0:00:02"]
[BlackClock "0:00:00"]
[Board "29"]

1. d4 {[%clk 0:03:00]}  Nf6 {[%clk 0:02:59]} 2. c4 {[%clk 0:03:01]}  g6 {[%clk 0:02:59]} 3. Nc3 {[%clk 0:03:01]}  Bg7 {[%clk 0:03:00]} 4. e4 {[%clk 0:03:01]}  d6 {[%clk 0:03:00]} 5. h3 {[%clk 0:03:02]}  O-O {[%clk 0:03:00]} 6. Bg5 {[%clk 0:03:02]}  Nbd7 {[%clk 0:02:53]} 7. Bd3 {[%clk 0:03:02]}  c5 {[%clk 0:02:50]} 8. d5 {[%clk 0:03:02]}  Ne5 {[%clk 0:02:43]} 9. Be2 {[%clk 0:02:53]}  b5 {[%clk 0:02:43]} 10. cxb5 {[%clk 0:02:44]}  a6 {[%clk 0:02:43]} 11. a4 {[%clk 0:02:29]}  Qa5 {[%clk 0:02:40]} 12. Bd2 {[%clk 0:02:08]}  axb5 {[%clk 0:02:39]} 13. Nxb5 {[%clk 0:02:04]}  Qb6 {[%clk 0:02:36]} 14. Qc2 {[%clk 0:01:52]}  Ba6 {[%clk 0:02:33]} 15. Nf3 {[%clk 0:01:42]}  Bxb5 {[%clk 0:02:21]} 16. Bxb5 {[%clk 0:01:40]}  Qxb5 {[%clk 0:02:16]} 17. axb5 {[%clk 0:01:39]}  Rxa1+ {[%clk 0:02:16]} 18. Ke2 {[%clk 0:01:10]}  Rxh1 {[%clk 0:02:14]} 19. Nxe5 {[%clk 0:01:10]}  dxe5 {[%clk 0:02:14]} 20. b6 {[%clk 0:01:03]}  Nd7 {[%clk 0:01:54]} 21. b4 {[%clk 0:01:00]}  cxb4 {[%clk 0:01:37]} 22. Qc7 {[%clk 0:00:57]}  b3 {[%clk 0:01:32]} 23. Qc3 {[%clk 0:00:28]}  Nxb6 {[%clk 0:01:06]} 24. Qxb3 {[%clk 0:00:29]}  Rb8 {[%clk 0:01:03]} 25. Qb5 {[%clk 0:00:26]}  Ra1 {[%clk 0:00:57]} 26. Ba5 {[%clk 0:00:24]}  Ra2+ {[%clk 0:00:47]} 27. Kf3 {[%clk 0:00:19]}  Nd7 {[%clk 0:00:39]} 28. Qxd7 {[%clk 0:00:18]}  Rxa5 {[%clk 0:00:33]} 29. Qxe7 {[%clk 0:00:11]}  h5 {[%clk 0:00:16]} 30. Kg3 {[%clk 0:00:09]}  Raa8 {[%clk 0:00:15]} 31. h4 {[%clk 0:00:09]}  Re8 {[%clk 0:00:15]} 32. Qg5 {[%clk 0:00:08]}  Rad8 {[%clk 0:00:13]} 33. f3 {[%clk 0:00:09]}  Bf8 {[%clk 0:00:13]} 34. Qe3 {[%clk 0:00:08]}  Bd6 {[%clk 0:00:13]} 35. Qa7 {[%clk 0:00:08]}  Rc8 {[%clk 0:00:13]} 36. Qd7 {[%clk 0:00:08]}  Red8 {[%clk 0:00:13]} 37. Qb7 {[%clk 0:00:09]}  Bc5 {[%clk 0:00:13]} 38. Qa6 {[%clk 0:00:08]}  Kg7 {[%clk 0:00:13]} 39. Qd3 {[%clk 0:00:08]}  Bd4 {[%clk 0:00:13]} 40. Qd2 {[%clk 0:00:08]}  Rb8 {[%clk 0:00:12]} 41. Qg5 {[%clk 0:00:08]}  Rd6 {[%clk 0:00:12]} 42. Qe7 {[%clk 0:00:08]}  Rbb6 {[%clk 0:00:11]} 43. Qe8 {[%clk 0:00:06]}  Rf6 {[%clk 0:00:11]} 44. Kh3 {[%clk 0:00:06]}  Rb1 {[%clk 0:00:08]} 45. Kh2 {[%clk 0:00:06]}  Bg1+ {[%clk 0:00:08]} 46. Kh3 {[%clk 0:00:06]}  Be3 {[%clk 0:00:07]} 47. Kh2 {[%clk 0:00:05]}  Bd4 {[%clk 0:00:03]} 48. Qe7 {[%clk 0:00:03]}  Ra6 {[%clk 0:00:03]} 49. d6 {[%clk 0:00:03]}  Raa1 {[%clk 0:00:03]} 50. Kg3 {[%clk 0:00:03]}  Ra2 {[%clk 0:00:02]} 51. d7 {[%clk 0:00:02]}  Bf2+ {[%clk 0:00:00]} 52. Kh2 {[%clk 0:00:02]} 1-0


[Site "https://www.chess.com"]

[Event "Titled Tuesday Blitz July 4 Late 2023"]
[White "Di Berardino, Diego Rafael"]
[Black "Rustemov, Alexander"]
[WhiteFideId "2105446"]
[BlackFideId "4119002"]
[WhiteElo "2624"]
[BlackElo "2803"]
[Result "0-1"]
[Round "8"]
[TimeControl "180+2"]
[Date "2023.07.04"]
[WhiteClock "0:00:00"]
[BlackClock "0:00:35"]
[Board "33"]

1. d4 {[%clk 0:03:00]}  g6 {[%clk 0:02:59]} 2. c4 {[%clk 0:02:59]}  Bg7 {[%clk 0:02:59]} 3. e4 {[%clk 0:02:58]}  d6 {[%clk 0:02:58]} 4. Nc3 {[%clk 0:02:57]}  Nc6 {[%clk 0:02:57]} 5. Be3 {[%clk 0:02:55]}  e5 {[%clk 0:02:57]} 6. d5 {[%clk 0:02:54]}  Nce7 {[%clk 0:02:55]} 7. Bd3 {[%clk 0:02:48]}  f5 {[%clk 0:02:55]} 8. f3 {[%clk 0:02:48]}  Nf6 {[%clk 0:02:54]} 9. Nge2 {[%clk 0:02:48]}  O-O {[%clk 0:02:54]} 10. O-O {[%clk 0:02:47]}  f4 {[%clk 0:02:51]} 11. Bf2 {[%clk 0:02:47]}  g5 {[%clk 0:02:52]} 12. g4 {[%clk 0:02:37]}  h5 {[%clk 0:02:43]} 13. h3 {[%clk 0:02:37]}  hxg4 {[%clk 0:02:39]} 14. hxg4 {[%clk 0:02:37]}  Nxg4 {[%clk 0:02:39]} 15. fxg4 {[%clk 0:02:36]}  Bxg4 {[%clk 0:02:40]} 16. Qd2 {[%clk 0:02:18]}  Qd7 {[%clk 0:02:35]} 17. Ng3 {[%clk 0:01:45]}  Kf7 {[%clk 0:02:23]} 18. Nf5 {[%clk 0:01:23]}  Rh8 {[%clk 0:02:18]} 19. Kg2 {[%clk 0:00:41]}  Bh3+ {[%clk 0:02:09]} 20. Kf3 {[%clk 0:00:40]}  Nxf5 {[%clk 0:01:58]} 21. exf5 {[%clk 0:00:40]}  Bxf5 {[%clk 0:01:59]} 22. Ne4 {[%clk 0:00:30]}  Bg4+ {[%clk 0:01:56]} 23. Kg2 {[%clk 0:00:29]}  Bh3+ {[%clk 0:01:56]} 24. Kg1 {[%clk 0:00:27]}  Bxf1 {[%clk 0:01:41]} 25. Kxf1 {[%clk 0:00:24]}  Rh1+ {[%clk 0:01:37]} 26. Bg1 {[%clk 0:00:23]}  g4 {[%clk 0:01:25]} 27. Ng5+ {[%clk 0:00:20]}  Ke7 {[%clk 0:01:18]} 28. Ne6 {[%clk 0:00:19]}  Bf6 {[%clk 0:01:10]} 29. Qg2 {[%clk 0:00:19]}  Rh4 {[%clk 0:01:05]} 30. Bf5 {[%clk 0:00:16]}  Qa4 {[%clk 0:01:01]} 31. b3 {[%clk 0:00:14]}  Qb4 {[%clk 0:00:58]} 32. Re1 {[%clk 0:00:12]}  Kf7 {[%clk 0:00:50]} 33. Nxf4 {[%clk 0:00:08]}  exf4 {[%clk 0:00:47]} 34. Qe4 {[%clk 0:00:08]}  Qc3 {[%clk 0:00:40]} 35. Qe6+ {[%clk 0:00:00]}  Kf8 {[%clk 0:00:35]} 0-1


[Site "https://www.chess.com"]

[Event "Titled Tuesday Blitz July 4 Late 2023"]
[White "Golubev, Mikhail"]
[Black "Mahdavi, Reza"]
[WhiteFideId "14100983"]
[BlackFideId "12595926"]
[WhiteElo "2565"]
[BlackElo "2747"]
[Result "1-0"]
[Round "8"]
[TimeControl "180+2"]
[Date "2023.07.04"]
[WhiteClock "0:00:17"]
[BlackClock "0:00:54"]
[Board "37"]

1. e4 {[%clk 0:02:56]}  c5 {[%clk 0:02:59]} 2. Nf3 {[%clk 0:02:53]}  d6 {[%clk 0:03:00]} 3. d4 {[%clk 0:02:53]}  cxd4 {[%clk 0:03:01]} 4. Nxd4 {[%clk 0:02:54]}  Nf6 {[%clk 0:03:02]} 5. Nc3 {[%clk 0:02:54]}  a6 {[%clk 0:03:02]} 6. Bc4 {[%clk 0:02:53]}  e6 {[%clk 0:02:54]} 7. O-O {[%clk 0:02:53]}  Be7 {[%clk 0:02:49]} 8. Bb3 {[%clk 0:02:52]}  O-O {[%clk 0:02:49]} 9. f4 {[%clk 0:02:52]}  Nbd7 {[%clk 0:02:46]} 10. Be3 {[%clk 0:02:48]}  Nc5 {[%clk 0:02:40]} 11. Qf3 {[%clk 0:02:47]}  Qc7 {[%clk 0:02:32]} 12. g4 {[%clk 0:02:46]}  b5 {[%clk 0:02:26]} 13. g5 {[%clk 0:02:46]}  Nfd7 {[%clk 0:02:25]} 14. a3 {[%clk 0:02:42]}  Bb7 {[%clk 0:02:25]} 15. Ba2 {[%clk 0:02:21]}  Rfe8 {[%clk 0:02:14]} 16. f5 {[%clk 0:02:02]}  Ne5 {[%clk 0:02:13]} 17. Qh3 {[%clk 0:01:47]}  exf5 {[%clk 0:02:02]} 18. exf5 {[%clk 0:01:36]}  Nc4 {[%clk 0:01:40]} 19. g6 {[%clk 0:01:02]}  fxg6 {[%clk 0:01:33]} 20. fxg6 {[%clk 0:01:02]}  h6 {[%clk 0:01:28]} 21. Bxh6 {[%clk 0:00:56]}  gxh6 {[%clk 0:01:26]} 22. Qxh6 {[%clk 0:00:47]}  Bf8 {[%clk 0:01:26]} 23. Qh4 {[%clk 0:00:28]}  Qe7 {[%clk 0:00:54]} 24. Rxf8+ {[%clk 0:00:17]} 1-0


[Site "https://www.chess.com"]

[Event "Titled Tuesday Blitz July 4 Late 2023"]
[White "Rodriguez, Santiago"]
[Black "Weetik, Vjacheslav"]
[WhiteFideId "3000591"]
[BlackFideId "4153472"]
[WhiteElo "2546"]
[BlackElo "2727"]
[Result "0-1"]
[Round "8"]
[TimeControl "180+2"]
[Date "2023.07.04"]
[WhiteClock "0:00:00"]
[BlackClock "0:01:06"]
[Board "38"]

1. d4 {[%clk 0:02:57]}  Nf6 {[%clk 0:02:59]} 2. Bg5 {[%clk 0:02:56]}  d5 {[%clk 0:02:59]} 3. Bxf6 {[%clk 0:02:56]}  gxf6 {[%clk 0:03:00]} 4. e3 {[%clk 0:02:56]}  c5 {[%clk 0:03:00]} 5. c4 {[%clk 0:02:55]}  e5 {[%clk 0:02:51]} 6. cxd5 {[%clk 0:02:51]}  cxd4 {[%clk 0:02:50]} 7. exd4 {[%clk 0:02:48]}  Qxd5 {[%clk 0:02:51]} 8. Nc3 {[%clk 0:02:42]}  Qxd4 {[%clk 0:02:48]} 9. Bb5+ {[%clk 0:02:33]}  Nc6 {[%clk 0:02:36]} 10. Qf3 {[%clk 0:02:18]}  Bd7 {[%clk 0:02:11]} 11. Rd1 {[%clk 0:01:49]}  Qf4 {[%clk 0:02:03]} 12. Qd5 {[%clk 0:01:18]}  O-O-O {[%clk 0:02:01]} 13. Qxf7 {[%clk 0:01:07]}  Bb4 {[%clk 0:01:56]} 14. Ne2 {[%clk 0:01:05]}  Qg5 {[%clk 0:01:53]} 15. O-O {[%clk 0:00:55]}  Rhg8 {[%clk 0:01:33]} 16. g3 {[%clk 0:00:35]}  f5 {[%clk 0:01:14]} 17. Nd5 {[%clk 0:00:12]}  Rg7 {[%clk 0:01:13]} 18. Qxg7 {[%clk 0:00:06]}  Qxg7 {[%clk 0:01:13]} 19. Bxc6 {[%clk 0:00:07]}  Bxc6 {[%clk 0:01:12]} 20. Nxb4 {[%clk 0:00:07]}  Rxd1 {[%clk 0:01:11]} 21. Rxd1 {[%clk 0:00:06]}  Bf3 {[%clk 0:01:11]} 22. Rc1+ {[%clk 0:00:06]}  Kb8 {[%clk 0:01:11]} 23. Nc3 {[%clk 0:00:06]}  Qh6 {[%clk 0:01:09]} 24. Nd3 {[%clk 0:00:04]}  Qd2 {[%clk 0:01:07]} 25. Ne1 {[%clk 0:00:00]}  Qxc1 {[%clk 0:01:06]} 0-1


[Site "https://www.chess.com"]

[Event "Titled Tuesday Blitz July 4 Late 2023"]
[White "Goryachkina, Aleksandra"]
[Black "Janturin, Artur"]
[WhiteFideId "4147103"]
[BlackFideId "4130022"]
[WhiteElo "2715"]
[BlackElo "2515"]
[Result "0-1"]
[Round "8"]
[TimeControl "180+2"]
[Date "2023.07.04"]
[WhiteClock "0:00:00"]
[BlackClock "0:00:36"]
[Board "39"]

1. e4 {[%clk 0:02:59]}  e6 {[%clk 0:02:58]} 2. d4 {[%clk 0:02:58]}  d5 {[%clk 0:02:57]} 3. Nd2 {[%clk 0:02:59]}  Nf6 {[%clk 0:02:56]} 4. e5 {[%clk 0:02:58]}  Nfd7 {[%clk 0:02:56]} 5. Bd3 {[%clk 0:02:58]}  c5 {[%clk 0:02:56]} 6. c3 {[%clk 0:02:59]}  Nc6 {[%clk 0:02:57]} 7. Ne2 {[%clk 0:02:58]}  cxd4 {[%clk 0:02:57]} 8. cxd4 {[%clk 0:02:58]}  f6 {[%clk 0:02:57]} 9. exf6 {[%clk 0:02:58]}  Qxf6 {[%clk 0:02:58]} 10. Nf3 {[%clk 0:02:57]}  h6 {[%clk 0:02:56]} 11. O-O {[%clk 0:02:39]}  Bd6 {[%clk 0:02:55]} 12. Be3 {[%clk 0:02:37]}  O-O {[%clk 0:02:53]} 13. Rc1 {[%clk 0:02:36]}  Rd8 {[%clk 0:02:45]} 14. Ng3 {[%clk 0:02:35]}  Nf8 {[%clk 0:02:43]} 15. Re1 {[%clk 0:02:27]}  Bd7 {[%clk 0:02:40]} 16. a3 {[%clk 0:02:21]}  Be8 {[%clk 0:02:38]} 17. Qe2 {[%clk 0:02:09]}  Rac8 {[%clk 0:02:35]} 18. Qd2 {[%clk 0:01:57]}  Rc7 {[%clk 0:02:29]} 19. Rc3 {[%clk 0:01:49]}  Rdc8 {[%clk 0:02:25]} 20. Rec1 {[%clk 0:01:48]}  a6 {[%clk 0:02:18]} 21. R3c2 {[%clk 0:00:54]}  Bg6 {[%clk 0:02:09]} 22. Bxg6 {[%clk 0:00:49]}  Nxg6 {[%clk 0:02:05]} 23. Ne2 {[%clk 0:00:48]}  Rf7 {[%clk 0:01:56]} 24. Rc3 {[%clk 0:00:38]}  Rcf8 {[%clk 0:01:53]} 25. Qc2 {[%clk 0:00:32]}  Nh4 {[%clk 0:01:46]} 26. Nxh4 {[%clk 0:00:30]}  Qxh4 {[%clk 0:01:47]} 27. g3 {[%clk 0:00:14]}  Qh3 {[%clk 0:01:28]} 28. Qd2 {[%clk 0:00:14]}  Ne7 {[%clk 0:01:05]} 29. Bf4 {[%clk 0:00:09]}  Ng6 {[%clk 0:00:40]} 30. Be3 {[%clk 0:00:00]}  Nh4 {[%clk 0:00:36]} 0-1


[Site "https://www.chess.com"]

[Event "Titled Tuesday Blitz July 4 Late 2023"]
[White "Toolin, Christopher"]
[Black "Papp, Levente"]
[WhiteFideId "2024543"]
[BlackFideId "751243"]
[WhiteElo "2429"]
[BlackElo "2683"]
[Result "0-1"]
[Round "8"]
[TimeControl "180+2"]
[Date "2023.07.04"]
[WhiteClock "0:00:05"]
[BlackClock "0:00:09"]
[Board "41"]

1. c4 {[%clk 0:03:00]}  b6 {[%clk 0:02:55]} 2. Nc3 {[%clk 0:02:55]}  Bb7 {[%clk 0:02:56]} 3. Nf3 {[%clk 0:02:55]}  Nf6 {[%clk 0:02:55]} 4. d3 {[%clk 0:02:55]}  g6 {[%clk 0:02:47]} 5. g3 {[%clk 0:02:55]}  Bg7 {[%clk 0:02:47]} 6. Bg2 {[%clk 0:02:55]}  O-O {[%clk 0:02:47]} 7. O-O {[%clk 0:02:55]}  c5 {[%clk 0:02:48]} 8. Rb1 {[%clk 0:02:55]}  d6 {[%clk 0:02:43]} 9. a3 {[%clk 0:02:55]}  Nbd7 {[%clk 0:02:35]} 10. Bd2 {[%clk 0:02:56]}  e6 {[%clk 0:02:33]} 11. Bf4 {[%clk 0:02:52]}  Qe7 {[%clk 0:02:32]} 12. b4 {[%clk 0:02:50]}  Rfd8 {[%clk 0:02:24]} 13. Nb5 {[%clk 0:02:46]}  Nf8 {[%clk 0:02:19]} 14. e4 {[%clk 0:02:45]}  e5 {[%clk 0:01:51]} 15. Be3 {[%clk 0:02:40]}  Ne6 {[%clk 0:01:51]} 16. Ng5 {[%clk 0:02:28]}  Nd4 {[%clk 0:01:47]} 17. Bxd4 {[%clk 0:02:19]}  cxd4 {[%clk 0:01:41]} 18. a4 {[%clk 0:02:16]}  a6 {[%clk 0:01:15]} 19. Na3 {[%clk 0:02:16]}  Nd7 {[%clk 0:01:16]} 20. f4 {[%clk 0:02:12]}  a5 {[%clk 0:01:14]} 21. bxa5 {[%clk 0:02:08]}  Rxa5 {[%clk 0:01:13]} 22. Nb5 {[%clk 0:02:05]}  Nc5 {[%clk 0:01:01]} 23. h4 {[%clk 0:01:48]}  h6 {[%clk 0:00:55]} 24. Nh3 {[%clk 0:01:35]}  Rxa4 {[%clk 0:00:49]} 25. f5 {[%clk 0:01:35]}  gxf5 {[%clk 0:00:39]} 26. Rxf5 {[%clk 0:01:29]}  Bc8 {[%clk 0:00:39]} 27. Rf2 {[%clk 0:01:28]}  Rf8 {[%clk 0:00:35]} 28. Qe2 {[%clk 0:00:56]}  Bd7 {[%clk 0:00:27]} 29. Nc7 {[%clk 0:00:46]}  Be6 {[%clk 0:00:19]} 30. Nxe6 {[%clk 0:00:40]}  fxe6 {[%clk 0:00:19]} 31. Rxb6 {[%clk 0:00:39]}  Ra1+ {[%clk 0:00:19]} 32. Kh2 {[%clk 0:00:39]}  Rxf2 {[%clk 0:00:19]} 33. Nxf2 {[%clk 0:00:39]}  Ra8 {[%clk 0:00:13]} 34. Bh3 {[%clk 0:00:29]}  Rf8 {[%clk 0:00:13]} 35. Kg2 {[%clk 0:00:23]}  Kh8 {[%clk 0:00:14]} 36. Rb1 {[%clk 0:00:13]}  Na4 {[%clk 0:00:13]} 37. Rf1 {[%clk 0:00:10]}  Nc3 {[%clk 0:00:13]} 38. Qh5 {[%clk 0:00:09]}  Qf6 {[%clk 0:00:12]} 39. Qg4 {[%clk 0:00:06]}  d5 {[%clk 0:00:07]} 40. Qxe6 {[%clk 0:00:04]}  Qf3+ {[%clk 0:00:07]} 41. Kh2 {[%clk 0:00:03]}  dxe4 {[%clk 0:00:07]} 42. Nxe4 {[%clk 0:00:02]}  Qe2+ {[%clk 0:00:07]} 43. Bg2 {[%clk 0:00:01]}  Rxf1 {[%clk 0:00:08]} 44. Qc8+ {[%clk 0:00:02]}  Rf8 {[%clk 0:00:08]} 45. Qe6 {[%clk 0:00:02]}  Nxe4 {[%clk 0:00:08]} 46. dxe4 {[%clk 0:00:02]}  d3 {[%clk 0:00:09]} 47. c5 {[%clk 0:00:02]}  d2 {[%clk 0:00:09]} 48. Qd7 {[%clk 0:00:02]}  d1=Q {[%clk 0:00:09]} 49. c6 {[%clk 0:00:03]}  Qxd7 {[%clk 0:00:09]} 50. cxd7 {[%clk 0:00:04]}  Rd8 {[%clk 0:00:09]} 51. Kh3 {[%clk 0:00:04]}  Rxd7 {[%clk 0:00:09]} 52. h5 {[%clk 0:00:03]}  Rd2 {[%clk 0:00:09]} 53. g4 {[%clk 0:00:04]}  Qxg2+ {[%clk 0:00:09]} 54. Kh4 {[%clk 0:00:05]}  Qh2# {[%clk 0:00:09]} 0-1


[Site "https://www.chess.com"]

[Event "Titled Tuesday Blitz July 4 Late 2023"]
[White "Skatchkov, Valery"]
[Black "Djabri, Massinas"]
[WhiteFideId "24195812"]
[BlackFideId "7905726"]
[WhiteElo "2662"]
[BlackElo "2390"]
[Result "1-0"]
[Round "8"]
[TimeControl "180+2"]
[Date "2023.07.04"]
[WhiteClock "0:01:14"]
[BlackClock "0:00:10"]
[Board "42"]

1. d4 {[%clk 0:02:59]}  Nf6 {[%clk 0:02:59]} 2. c4 {[%clk 0:03:00]}  e6 {[%clk 0:02:59]} 3. Nf3 {[%clk 0:03:00]}  d5 {[%clk 0:02:59]} 4. g3 {[%clk 0:03:00]}  dxc4 {[%clk 0:02:56]} 5. Bg2 {[%clk 0:03:01]}  Bb4+ {[%clk 0:02:57]} 6. Nbd2 {[%clk 0:03:00]}  O-O {[%clk 0:02:55]} 7. Qc2 {[%clk 0:02:58]}  a5 {[%clk 0:02:53]} 8. a3 {[%clk 0:02:57]}  Be7 {[%clk 0:02:39]} 9. Nxc4 {[%clk 0:02:51]}  b5 {[%clk 0:02:34]} 10. Nce5 {[%clk 0:02:52]}  Bb7 {[%clk 0:02:27]} 11. O-O {[%clk 0:02:52]}  Be4 {[%clk 0:02:25]} 12. Qc3 {[%clk 0:02:51]}  b4 {[%clk 0:02:21]} 13. Qc4 {[%clk 0:02:47]}  Bd5 {[%clk 0:02:19]} 14. Qd3 {[%clk 0:02:47]}  c5 {[%clk 0:02:15]} 15. dxc5 {[%clk 0:02:45]}  Bxc5 {[%clk 0:02:16]} 16. Bg5 {[%clk 0:02:45]}  h6 {[%clk 0:01:47]} 17. Bxf6 {[%clk 0:01:44]}  Qxf6 {[%clk 0:01:44]} 18. Rac1 {[%clk 0:01:40]}  Na6 {[%clk 0:01:23]} 19. Nd7 {[%clk 0:01:37]}  Qe7 {[%clk 0:01:11]} 20. Nxf8 {[%clk 0:01:36]}  Qxf8 {[%clk 0:01:10]} 21. axb4 {[%clk 0:01:29]}  Nxb4 {[%clk 0:01:03]} 22. Qb5 {[%clk 0:01:29]}  Be7 {[%clk 0:00:54]} 23. Ne5 {[%clk 0:01:27]}  Bxg2 {[%clk 0:00:38]} 24. Kxg2 {[%clk 0:01:28]}  Qb8 {[%clk 0:00:24]} 25. Qxb8+ {[%clk 0:01:26]}  Rxb8 {[%clk 0:00:24]} 26. Ra1 {[%clk 0:01:25]}  Rb5 {[%clk 0:00:19]} 27. Nc4 {[%clk 0:01:26]}  Nc6 {[%clk 0:00:15]} 28. Rfc1 {[%clk 0:01:25]}  Bf6 {[%clk 0:00:15]} 29. Ra2 {[%clk 0:01:25]}  Kh7 {[%clk 0:00:15]} 30. e3 {[%clk 0:01:20]}  Rc5 {[%clk 0:00:15]} 31. Raa1 {[%clk 0:01:14]}  Rb5 {[%clk 0:00:15]} 32. Nd6 {[%clk 0:01:15]}  Rxb2 {[%clk 0:00:10]} 33. Rxc6 {[%clk 0:01:14]} 1-0


[Site "https://www.chess.com"]